fUSD/lending_fUSD_20250515
["ID","MTS","AMOUNT","RATE_DAILY","PERIOD"]
[361209863,1747342244670,-231.53968768,0.00011589,2]
[361209864,1747342244835,-177.87332245,0.00011589,2]
[361209865,1747342244846,-203.21602,0.00011589,2]
[361209866,1747342244855,-500.0,0.00011589,2]
[361209867,1747342244864,-500.0,0.00011589,2]
[361209868,1747342244874,-500.0,0.00011589,2]
[361209869,1747342244883,-430.0,0.00011589,2]
[361209870,1747342244895,-500.0,0.00011617,2]
[361209871,1747342244905,-500.0,0.00011617,2]
[361209872,1747342244914,-500.0,0.00011617,2]
[361209873,1747342244923,-430.0,0.00011617,2]
[361209874,1747342244932,-500.0,0.00011644,2]
[361209875,1747342244941,-500.0,0.00011644,2]
[361209876,1747342244950,-500.0,0.00011644,2]
[361209877,1747342244960,-430.0,0.00011644,2]
[361209878,1747342244969,-500.0,0.00011671,2]
[361209879,1747342244978,-500.0,0.00011671,2]
[361209880,1747342244987,-500.0,0.00011671,2]
[361209881,1747342244996,-430.0,0.00011671,2]
[361209882,1747342245005,-500.0,0.00011699,2]
[361209883,1747342245015,-500.0,0.00011699,2]
[361209884,1747342245024,-500.0,0.00011699,2]
[361209885,1747342245033,-430.0,0.00011699,2]
[361209886,1747342245042,-500.0,0.00011726,2]
[361209887,1747342245051,-500.0,0.00011726,2]
[361209888,1747342245060,-500.0,0.00011726,2]
[361209889,1747342245069,-430.0,0.00011726,2]
[361209890,1747342245078,-500.0,0.00011754,2]
[361209891,1747342245087,-519.00971366,0.00011754,2]
[361209892,1747342245097,-500.0,0.00011754,2]
[361209893,1747342245106,-430.0,0.00011754,2]
[361209894,1747342245116,-500.0,0.00011781,2]
[361209895,1747342245126,-500.0,0.00011781,2]
[361209896,1747342245135,-430.0,0.00011781,2]
[361209897,1747342245145,-274.55733263,0.00011789,2]
[361209898,1747342245154,-506.76468884,0.00011808,2]
[361209899,1747342245163,-500.0,0.00011808,2]
[361209900,1747342245172,-430.0,0.00011808,2]
[361209901,1747342245182,-500.0,0.00011836,2]
[361209902,1747342245191,-430.0,0.00011836,2]
[361209903,1747342245200,-500.0,0.00011863,2]
[361209904,1747342245210,-430.0,0.00011863,2]
[361209905,1747342245221,-500.0,0.00011891,2]
[361209906,1747342245231,-430.0,0.00011891,2]
[361209907,1747342245240,-517.37605262,0.000119,2]
[361209908,1747342245249,-972.555589,0.000119,2]
[361209909,1747342245259,-972.555589,0.000119,2]
[361209910,1747342245270,-151.0,0.000119,2]
[361209911,1747342245279,-151.0,0.000119,2]
[361209912,1747342245290,-151.0,0.000119,2]
[361209913,1747342245302,-554.836252,0.000119,2]
[361209914,1747342245311,-151.0,0.000119,2]
[361209915,1747342245320,-554.836252,0.000119,2]
[361209916,1747342245330,-4644.66580087,0.000119,2]
[361209917,1747342245339,-151.0,0.000119,2]
[361209918,1747342245349,-151.0,0.000119,2]
[361209919,1747342245358,-151.0,0.000119,2]
[361209920,1747342245367,-151.0,0.000119,2]
[361209921,1747342245376,-218.36708553,0.000119,2]
[361209922,1747342245386,-500.0,0.00011918,2]
[361209923,1747342245395,-430.0,0.00011918,2]
[361209924,1747342245404,-500.0,0.00011945,2]
[361209925,1747342245413,-430.0,0.00011945,2]
[361209926,1747342245423,-500.0,0.00011973,2]
[361209927,1747342245432,-430.0,0.00011973,2]
[361209928,1747342245442,-165.39,0.00011977,2]
[361209929,1747342245452,-961.3198031,0.00011995,2]
[361209930,1747342245461,-2425.7334897,0.00011995,2]
[361209931,1747342245471,-383.531404,0.00011995,2]
[361209932,1747342245481,-383.531404,0.00011995,2]
[361209933,1747342245491,-500.0,0.00012,2]
[361209934,1747342245501,-500.0,0.00012,2]
[361209935,1747342245511,-430.0,0.00012,2]
[361209936,1747342245521,-274.55733263,0.00012011,2]
[361209937,1747342245531,-436.0,0.00012028,2]
[361209938,1747342245540,-430.0,0.00012028,2]
[361209939,1747342245549,-457.61,0.00012044,2]
[361209940,1747342245559,-1607.64,0.00012044,2]
[361209941,1747342245568,-430.0,0.00012055,2]
[361209942,1747342245579,-430.0,0.00012082,2]
[361209943,1747342245589,-430.0,0.0001211,2]
[361209944,1747342245600,-442.0,0.00012137,2]
[361209945,1747342245609,-4644.66580061,0.00012141,2]
[361209946,1747342245618,-166.89,0.0001215,2]
[361209947,1747342245628,-1000.0,0.00012223,2]
[361209948,1747342245637,-517.37605262,0.00012233,2]
[361209949,1747342245646,-274.55733263,0.00012233,2]
[361209950,1747342245656,-433.0,0.00012236,2]
[361209951,1747342245666,-300.0,0.00012252,2]
[361209952,1747342245676,-1126.0,0.00012255,2]
[361209953,1747342245685,-1000.0,0.000123,3]
[361209954,1747342245695,-1400.72399014,0.00012356,2]
[361209955,1747342245705,-793.08,0.00012368,2]
[361209956,1747342245715,-4644.66580061,0.00012383,2]
[361209957,1747342245724,-218.36708553,0.000124,2]
[361209958,1747342245734,-1400.72399014,0.00012411,2]
[361209959,1747342245744,-1400.72399014,0.00012438,2]
[361209960,1747342245754,-274.55733263,0.00012456,2]
[361209961,1747342245764,-1400.72399014,0.00012493,2]
[361209962,1747342245773,-150.0,0.00012499,2]
[361209963,1747342245783,-150.0,0.00012499,2]
[361209964,1747342245793,-150.0,0.00012499,2]
[361209965,1747342245802,-150.0,0.00012499,2]
[361209966,1747342245812,-150.0,0.00012499,2]
[361209967,1747342245821,-208.66454302,0.00012499,2]
[361209968,1747342245831,-528.57,0.00012504,2]
[361209969,1747342245840,-1400.72399014,0.00012548,2]
[361209970,1747342245850,-517.37605262,0.00012567,2]
[361209971,1747342245860,-1400.72399014,0.00012603,2]
[361209972,1747342245870,-165.39,0.00012608,2]
[361209973,1747342245879,-151.0,0.00012624,2]
[361209974,1747342245889,-151.0,0.00012624,2]
[361209975,1747342245898,-4644.66580061,0.00012624,2]
[361209976,1747342245908,-1400.72399014,0.00012658,2]
[361209977,1747342245917,-274.55733263,0.00012678,2]
[361209978,1747342245927,-1400.72399014,0.00012685,2]
[361209979,1747342245936,-1000.0,0.000127,3]
[361209980,1747342245945,-171351.49552252,0.00012739,2]
[361209981,1747342245954,-152.368761,0.00012739,2]
[361209982,1747342245964,-390.41509,0.00012739,2]
[361209983,1747342245973,-390.41509,0.00012739,2]
[361209984,1747342245984,-171.456873,0.00012739,2]
[361209985,1747342245993,-151.0,0.00012739,2]
[361209986,1747342246002,-264.881813,0.00012739,2]
[361209987,1747342246011,-151.0,0.00012739,2]
[361209988,1747342246020,-264.881813,0.00012739,2]
[361209989,1747342246029,-3806.151426,0.00012739,2]
[361209990,1747342246038,-151.0,0.00012739,2]
[361209991,1747342246047,-3806.151426,0.00012739,2]
[361209992,1747342246056,-385.75323,0.00012739,2]
[361209993,1747342246065,-385.75323,0.00012739,2]
[361209994,1747342246079,-151.0,0.00012739,2]
[361209995,1747342246088,-151.0,0.00012739,2]
[361209996,1747342246098,-151.0,0.00012739,2]
[361209997,1747342246109,-161.829385,0.00012739,2]
[361209998,1747342246118,-161.829385,0.00012739,2]
[361209999,1747342246130,-151.0,0.00012739,2]
[361210000,1747342246148,-396.881022,0.00012739,2]
[361210001,1747342246159,-396.881022,0.00012739,2]
[361210002,1747342246168,-855.950088,0.00012739,2]
[361210003,1747342246178,-855.950088,0.00012739,2]
[361210004,1747342246189,-1400.72399014,0.0001274,2]
[361210005,1747342246200,-1736.8,0.00012753,2]
[361210006,1747342246209,-1400.72399014,0.00012795,2]
[361210007,1747342246221,-1400.72399014,0.00012849,2]
[361210008,1747342246231,-4644.66580061,0.00012866,2]
[361210009,1747342246241,-517.37605262,0.000129,2]
[361210010,1747342246250,-274.55733263,0.000129,2]
[361210011,1747342246259,-218.36708553,0.000129,2]
[361210012,1747342246270,-1400.72399014,0.00012904,2]
[361210013,1747342246279,-1000.0,0.0001299,3]
[361210014,1747342246288,-151.0,0.00012991,2]
[361210015,1747342246299,-198.916514,0.00012991,2]
[361210016,1747342246310,-198.916514,0.00012991,2]
[361210017,1747342246319,-220.48098,0.00012991,2]
[361210018,1747342246329,-220.48098,0.00012991,2]
[361210019,1747342246338,-280.262348,0.00012991,2]
[361210020,1747342246348,-193.075494,0.00012991,2]
[361210021,1747342246358,-193.075494,0.00012991,2]
[361210022,1747342246367,-278.962561,0.00012991,2]
[361210023,1747342246376,-278.962561,0.00012991,2]
[361210024,1747342246386,-151.0,0.00012991,2]
[361210025,1747342246395,-1063.681183,0.00012991,2]
[361210026,1747342246405,-1063.681183,0.00012991,2]
[361210027,1747342246414,-402.725067,0.00012991,2]
[361210028,1747342246423,-402.725067,0.00012991,2]
[361210029,1747342246433,-603.356593,0.00012991,2]
[361210030,1747342246442,-603.356593,0.00012991,2]
[361210031,1747342246451,-53678.6098791,0.00012991,2]
[361210032,1747342246460,-67214.4145865,0.00012991,2]
[361210033,1747342246470,-1285.4684784,0.00012991,2]
[361210034,1747342246479,-1609.6171536,0.00012991,2]
[361210035,1747342246488,-151.0,0.00012991,2]
[361210036,1747342246497,-151.0,0.00012991,2]
[361210037,1747342246506,-260.946135,0.00012991,2]
[361210038,1747342246516,-260.946135,0.00012991,2]
[361210039,1747342246525,-159.874284,0.00012991,2]
[361210040,1747342246534,-159.874284,0.00012991,2]
[361210041,1747342246545,-3243.6697213,0.00012991,2]
[361210042,1747342246554,-4061.605953,0.00012991,2]
[361210043,1747342246563,-151.0,0.00012991,2]
[361210044,1747342246572,-151.0,0.00012991,2]
[361210045,1747342246582,-151.0,0.00012991,2]
[361210046,1747342246591,-383.531404,0.00012991,2]
[361210047,1747342246606,-383.531404,0.00012991,2]
[361210048,1747342246614,-554.836252,0.00012991,2]
[361210049,1747342246624,-151.0,0.00012991,2]
[361210050,1747342246633,-554.836252,0.00012991,2]
[361210051,1747342246643,-151.0,0.00012991,2]
[361210052,1747342246652,-151.0,0.00012991,2]
[361210053,1747342246661,-300.0,0.00012999,2]
[361210054,1747342246670,-300.0,0.00012999,2]
[361210055,1747342246680,-2095719.03544752,0.00013,2]
[361210056,1747342246695,-517.75,0.00013,2]
[361210058,1747342246725,-1719.25,0.00013,2]
[361210059,1747342246736,-11381.35970219,0.00013,2]
[361210060,1747342246775,-1570.44362619,0.00013,2]
[361210061,1747342247696,-171.5450196,0.000119,2]
[361210062,1747342247706,-878.52995424,0.00013,2]
[361210063,1747342247758,-41579.5254445,0.00013,2]
[361210064,1747342248404,-193.51976381,0.00011534,2]
[361210065,1747342248414,-261.43230368,0.00011534,2]
[361210066,1747342248424,-10022.9619325,0.00013,2]
[361210067,1747342248492,-1561.08,0.00013,2]
[361210068,1747342248504,-11614.4530472,0.00013,2]
[361210069,1747342248519,-258.04,0.00013,2]
[361210070,1747342455698,-1000.0,0.00010143,2]
[361210071,1747342455740,-200.0,0.00010508,2]
[361210072,1747342455762,-50.0,0.00010508,2]
[361210073,1747342455845,-200.0,0.00010508,2]
[361210074,1747342455869,-250.0,0.00010865,2]
[361210075,1747342455892,-727.1486,0.00010873,2]
[361210076,1747342456103,-560.0,0.00010999,2]
[361210077,1747342456128,-200.0,0.00011158,2]
[361210078,1747342456149,-250.0,0.00011158,2]
[361210079,1747342456171,-1000.0,0.00011411,2]
[361210080,1747342456192,-1753.96529,0.000119,2]
[361210081,1747342456237,-716.591655,0.000119,2]
[361210082,1747342456259,-2470.556945,0.000119,2]
[361210083,1747342456281,-151.0,0.000119,2]
[361210084,1747342456307,-150.0,0.00011917,2]
[361210085,1747342456328,-6539.836859,0.00011918,2]
[361210086,1747342456348,-593.752051,0.00011918,2]
[361210087,1747342477188,450.0,0.0001,2]
[361210088,1747342519026,-150.0,0.00015,7]
[361210089,1747342524340,-280.0,0.00015,7]
[361210090,1747342597596,150.0,0.00012088,7]
[361210091,1747342685264,550.0,0.00011233,2]
[361210092,1747342768844,199.13,0.00010143,2]
[361210122,1747342791757,160.55,0.00021945,30]
[361210123,1747342952433,250.87,8.226e-05,2]
[361210124,1747342952460,560.0,8.226e-05,2]
[361210125,1747342952482,727.1486,8.226e-05,2]
[361210126,1747342952507,16.5414,8.226e-05,2]
[361210127,1747342952637,433.4586,0.00010489,2]
[361210133,1747343098894,250.0,0.00010143,2]
[361210136,1747343312812,145.52393565,0.00010143,2]
[361210147,1747343432183,-854.47606435,0.00010143,2]
[361210148,1747343432198,-317.23,0.00010143,2]
[361210149,1747343432213,-1121.1014,0.00010489,2]
[361210150,1747343432227,-150.0,0.00010959,2]
[361210151,1747343432242,-3450.0,0.00011233,2]
[361210152,1747343432256,-1200.0,0.0001141,2]
[361210153,1747343432271,-300.0,0.0001141,2]
[361210154,1747343432284,-1000.0,0.00011411,2]
[361210155,1747343432299,-317.23,0.00011411,2]
[361210156,1747343432314,-150.0,0.00011688,2]
[361210157,1747343432330,-150.0,0.00011688,2]
[361210158,1747343432345,-150.0,0.00011688,2]
[361210159,1747343432359,-150.0,0.00011688,2]
[361210160,1747343432373,-150.0,0.00011688,2]
[361210161,1747343432388,-150.0,0.00011688,2]
[361210163,1747343432402,-150.0,0.00011688,2]
[361210165,1747343432417,-150.0,0.00011688,2]
[361210167,1747343432431,-150.0,0.00011788,2]
[361210170,1747343432445,-150.0,0.00011806,2]
[361210172,1747343432461,-150.0,0.00011818,2]
[361210174,1747343432475,-165.39,0.00011885,2]
[361210176,1747343432490,-150.0,0.00011887,2]
[361210178,1747343432504,-219.687645,0.000119,2]
[361210180,1747343432519,-219.687645,0.000119,2]
[361210183,1747343432533,-150.0,0.00011917,2]
[361210186,1747343432548,-5946.084808,0.00011918,2]
[361210187,1747343432562,-151.0,0.00011918,2]
[361210190,1747343432577,-151.0,0.00011918,2]
[361210192,1747343432591,-151.0,0.00011918,2]
[361210194,1747343432606,-151.0,0.00011918,2]
[361210196,1747343432621,-151.0,0.00011918,2]
[361210199,1747343432635,-150.0,0.00011924,2]
[361210201,1747343432648,-150.0,0.00011947,2]
[361210203,1747343432665,-150.0,0.00011987,2]
[361210205,1747343432681,-500.0,0.00012,2]
[361210208,1747343432696,-928.32,0.00012,2]
[361210210,1747343432712,-150.0,0.00012012,2]
[361210212,1747343432727,-150.0,0.00012012,2]
[361210215,1747343432744,-150.0,0.00012012,2]
[361210217,1747343432759,-150.0,0.00012042,2]
[361210219,1747343432773,-150.0,0.00012077,2]
[361210221,1747343432788,-150.0,0.00012087,2]
[361210224,1747343432802,-150.0,0.00012121,2]
[361210226,1747343432818,-150.0,0.0001216,2]
[361210228,1747343432832,-150.0,0.00012187,2]
[361210230,1747343432846,-150.0,0.00012207,2]
[361210233,1747343432860,-200.0,0.0001225,2]
[361210235,1747343432875,-151.0,0.0001225,2]
[361210236,1747343432889,-155.0,0.0001225,2]
[361210237,1747343432903,-151.0,0.0001225,2]
[361210238,1747343432917,-719.52358209,0.0001225,2]
[361210239,1747343432933,-668.65185757,0.0001225,2]
[361210240,1747343432948,-151.0,0.0001225,2]
[361210241,1747343432963,-207.4,0.0001225,2]
[361210242,1747343432977,-151.0,0.0001225,2]
[361210243,1747343432992,-3583.112,0.00012256,2]
[361210244,1747343433007,-165.809,0.00012256,2]
[361210246,1747343433178,-276.79,0.00012256,2]
[361210247,1747343433262,-999.99,0.00012256,2]
[361210248,1747343433272,-23900.0,0.00012257,2]
[361210249,1747343433282,-150.0,0.00012278,2]
[361210250,1747343433292,-150.0,0.00012287,2]
[361210251,1747343433301,-150.0,0.00012337,2]
[361210252,1747343433311,-150.0,0.00012337,2]
[361210253,1747343433321,-150.0,0.00012337,2]
[361210254,1747343433331,-150.0,0.00012337,2]
[361210255,1747343433340,-150.0,0.00012387,2]
[361210256,1747343433349,-62.43363649,0.00012396,2]
[361210257,1747343433893,-87.56636351,0.00012396,2]
[361210258,1747343433903,-150.0,0.00012467,2]
[361210259,1747343433913,-150.0,0.00012487,2]
[361210260,1747343433923,-150.0,0.00012514,2]
[361210261,1747343433932,-279.0,0.00012551,2]
[361210262,1747343433941,-150.0,0.00012553,2]
[361210263,1747343433952,-150.0,0.00012587,2]
[361210264,1747343433962,-150.0,0.00012597,2]
[361210265,1747343433972,-864.16826048,0.00012611,2]
[361210266,1747343433982,-150.0,0.00012632,2]
[361210267,1747343433992,-150.0,0.00012662,2]
[361210268,1747343434003,-150.0,0.00012662,2]
[361210269,1747343434013,-150.0,0.00012662,2]
[361210270,1747343434023,-1000.0,0.00012678,2]
[361210271,1747343434034,-1407.42,0.00012678,2]
[361210272,1747343434044,-530.52,0.00012678,2]
[361210273,1747343434054,-709.08,0.00012678,2]
[361210274,1747343434064,-1000.0,0.00012679,2]
[361210275,1747343434074,-317.23,0.00012679,2]
[361210276,1747343434085,-150.0,0.00012687,2]
[361210277,1747343434095,-151.0,0.000127,2]
[361210278,1747343434105,-151.0,0.000127,2]
[361210279,1747343434115,-388.42768,0.000127,2]
[361210280,1747343434126,-388.42768,0.000127,2]
[361210281,1747343434136,-543.020934,0.000127,2]
[361210282,1747343434147,-289.75814544,0.000127,2]
[361210283,1747343434166,-253.26278856,0.000127,2]
[361210284,1747343434175,-151.0,0.000127,2]
[361210285,1747343434185,-452.72,0.000127,2]
[361210286,1747343434194,-153.89,0.000127,2]
[361210287,1747343434204,-352.99,0.000127,2]
[361210288,1747343434213,-162.63,0.000127,2]
[361210289,1747343434223,-150.0,0.00012727,2]
[361210290,1747343434232,-150.0,0.0001275,2]
[361210291,1747343434242,-1554.56,0.00012753,2]
[361210292,1747343434252,-1813.6814,0.00012767,2]
[361210293,1747343434262,-150.0,0.00012787,2]
[361210294,1747343434272,-207.4,0.00012798,2]
[361210295,1747343434282,-154.19770639,0.00012798,2]
[361210296,1747343434292,-693.3919763,0.00012798,2]
[361210297,1747343434301,-151.0,0.00012798,2]
[361210298,1747343434311,-151.0,0.00012798,2]
[361210299,1747343434324,-2353.86536928,0.000128,2]
[361210300,1747343434336,-146.13463072,0.000128,2]
[361210301,1747343434346,-1000.0,0.000128,2]
[361210302,1747343434356,-5524.68835745,0.000128,2]
[361210303,1747343434365,-171.5450196,0.000128,2]
[361210304,1747343434375,-1529.63199223,0.00012811,2]
[361210307,1747343438053,-3995.05636522,0.00012811,2]
[361210308,1747343438063,-4989.73421865,0.00012822,2]
[361210369,1747343440111,-534.9541388,0.00012822,2]
[361210370,1747343440121,-257.36726736,0.00012833,2]
[361210371,1747343440132,-3121.8680359,0.00012833,2]
[361210372,1747343440144,-394.20200095,0.00012833,2]
[361210373,1747343440155,-1751.25105324,0.00012833,2]
[361210374,1747343440164,-5524.68835745,0.00012844,2]
[361210375,1747343440174,-4738.83343777,0.00012856,2]
[361210376,1747343440191,-785.85491968,0.00012856,2]
[361210377,1747343440201,-150.0,0.00012856,2]
[361210378,1747343440210,-1162.53348032,0.00012867,2]
[361210379,1747343440245,-4362.15487713,0.00012867,2]
[361210380,1747343440255,-150.0,0.00012868,2]
[361210381,1747343440265,-4773.51915617,0.00012878,2]
[361210382,1747343440277,-751.16920128,0.00012878,2]
[361210383,1747343440286,-150.0,0.00012886,2]
[361210384,1747343440296,-5524.68835745,0.00012889,2]
[361210385,1747343440306,-500.0,0.00012896,2]
[361210386,1747343440316,-1616.85642327,0.00012896,2]
[361210387,1747343440328,-4110.66131646,0.00012896,2]
[361210393,1747343440608,-254.97302287,0.00012896,2]
[361210397,1747343440644,-10459.08672348,0.00012896,2]
[361210435,1747343443109,-500.0,0.00012896,2]
[361210436,1747343443273,-11691.22063492,0.00012896,2]
[361210451,1747343443524,-665.159998,0.00012896,2]
[361210453,1747343443536,-892.0,0.00012896,2]
[361210464,1747343446059,-5160.0,0.00012896,2]
[361210465,1747343446229,-3880.70420578,0.00012896,2]
[361210466,1747343446311,-31131.6881264,0.00012896,2]
[361210566,1747343664820,150.0,0.00011451,7]
[361210567,1747343678195,150.0,0.00013,5]
[361210569,1747344182903,-1470.1,0.00010026,2]
[361210570,1747344287481,160.55,0.00021945,30]
[361210572,1747344428977,-395.52393565,0.0001,2]
[361210573,1747344452987,-54.47606435,0.0001,2]
[361210574,1747344453012,-207.4,0.00011444,2]
[361210575,1747344453039,-133.6478713,0.0001145,2]
[361210576,1747344496332,-300.0,0.00010999,2]
[361210577,1747344496355,-95.52393565,0.00011,2]
[361210584,1747344583971,-150.1088333,0.000109,2]
[361210604,1747344632157,-29.45423819,0.000109,2]
[361210606,1747344632166,-500.0,0.00010973,2]
[361210608,1747344632176,-1270.54576181,0.00010997,2]
[361210613,1747344632209,-20628.3696,0.00010997,2]
[361210615,1747344632221,-1231.85132041,0.00010997,2]
[361210616,1747344632232,-578.59140228,0.00010997,2]
[361210617,1747344632244,-13138.44444635,0.00010997,2]
[361210618,1747344632260,-415.87469936,0.00010997,2]
[361210619,1747344632277,-114152.23384406,0.00010997,2]
[361210620,1747344632290,-43592.78669534,0.00010997,2]
[361210621,1747344632322,-12906.20841283,0.00010997,2]
[361210622,1747344632333,-430.25086577,0.00010997,2]
[361210623,1747344632345,-4409.5856333,0.00010997,2]
[361210624,1747344632358,-556.26072989,0.00010997,2]
[361210625,1747344632370,-4906.28337191,0.00010997,2]
[361210628,1747344632541,-239.32559088,0.00010996,2]
[361210629,1747344632551,-219.02528673,0.00010996,2]
[361210630,1747344632560,-150.1088333,0.00010996,2]
[361210631,1747344632569,-27390.84193017,0.00010997,2]
[361210632,1747344632580,-1825.97479114,0.00010997,2]
[361210633,1747344632591,-929.25693706,0.00010997,2]
[361210634,1747344632603,-4297.54566169,0.00010997,2]
[361210639,1747344632651,-383.12875825,0.00010997,2]
[361210641,1747344632662,-5631.21966337,0.00010997,2]
[361210652,1747344632999,150.0,0.00011511,7]
[361210655,1747344638285,-349.03655998,0.00010996,2]
[361210656,1747344638301,-150.96344002,0.00010996,2]
[361210657,1747344638318,-368.78657098,0.00010996,2]
[361210658,1747344638339,-131.21342902,0.00010996,2]
[361210659,1747344638355,-500.0,0.00010996,2]
[361210660,1747344638370,-437.00557485,0.00010996,2]
[361210661,1747344638389,-62.99442515,0.00010996,2]
[361210662,1747344638405,-500.0,0.00010996,2]
[361210665,1747344638421,-500.0,0.00010996,2]
[361210667,1747344638436,-500.0,0.00010996,2]
[361210669,1747344638451,-500.0,0.00010996,2]
[361210672,1747344638467,-500.0,0.00010996,2]
[361210674,1747344638483,-500.0,0.00010996,2]
[361210677,1747344638497,-500.0,0.00010996,2]
[361210679,1747344638513,-500.0,0.00010996,2]
[361210682,1747344638528,-500.0,0.00010996,2]
[361210685,1747344638544,-500.0,0.00010996,2]
[361210687,1747344638559,-330.93791249,0.00010996,2]
[361210691,1747344638575,-500.0,0.00010996,2]
[361210696,1747344638590,-500.0,0.00010996,2]
[361210699,1747344638606,-500.0,0.00010996,2]
[361210703,1747344638621,-500.0,0.00010996,2]
[361210705,1747344638636,-500.0,0.00010996,2]
[361210708,1747344638651,-500.0,0.00010996,2]
[361210711,1747344638667,-500.0,0.00010996,2]
[361210713,1747344638681,-233.5807507,0.00010996,2]
[361210716,1747344638696,-15816.83114678,0.00010997,2]
[361210719,1747344638716,-534.82997,0.00010997,2]
[361210726,1747344638779,-419168.95026929,0.00010997,2]
[361210729,1747344638795,-300.0,0.00010998,2]
[361210732,1747344638809,-1067.0,0.00010998,2]
[361210734,1747344638824,-150.0,0.00010998,2]
[361210737,1747344638839,-300.0,0.00010998,2]
[361210739,1747344638855,-587.64480514,0.00010999,2]
[361210742,1747344638871,-146573.91594877,0.00011,2]
[361210745,1747344638890,-415.48759495,0.00011,2]
[361210748,1747344638907,-8431.1612707,0.00011,2]
[361210755,1747344639044,-28935.22710385,0.00011,2]
[361210756,1747344639087,-26536.75640405,0.00011,2]
[361210971,1747344642991,-1296.07236864,0.00011,2]
[361210972,1747344643003,-16334.38412226,0.00011,2]
[361210973,1747344643014,-8349.9999995,0.00011,2]
[361210974,1747344643056,-561.74801864,0.00011,2]
[361210975,1747344643069,-7264.47719696,0.00011,2]
[361210976,1747344643082,-11104.40000003,0.00011,2]
[361210977,1747344643095,-18577.6464,0.00011,2]
[361210978,1747344643113,-19816.92653172,0.00011,2]
[361210986,1747344643172,-552.84548705,0.00011,2]
[361210989,1747344643185,-2200.0,0.00011,2]
[361210995,1747344643240,-8064.3617255,0.00011,2]
[361211014,1747344643375,-5972.32283216,0.00011,2]
[361211017,1747344643387,-18198.32,0.00011,2]
[361211019,1747344643398,-18423.47796438,0.00011,2]
[361211035,1747344643547,-557.084731,0.00011,2]
[361211315,1747344646368,-1762.30326788,0.00011,2]
[361211327,1747344646481,-10290.0,0.00011,2]
[361211330,1747344646493,-831.11728354,0.00011,2]
[361211332,1747344646505,-1089.67025162,0.00011,2]
[361211334,1747344646516,-1198.2060002,0.00011,2]
[361211347,1747344646627,-1203.42499592,0.00011,2]
[361211967,1747344718737,-243.52393565,0.000109,2]
[361211968,1747344742923,-179.56307149,0.000109,2]
[361211973,1747344869380,-245.41510235,0.000109,2]
[361211975,1747344915197,-398.0,0.00010899,2]
[361211976,1747344915225,-300.0,0.00010899,2]
[361211977,1747344915255,-331.49789051,0.000109,2]
[361211978,1747344915282,-2500.0,0.000109,2]
[361211979,1747344915310,-463.50210949,0.000109,2]
[361211980,1747344960614,-245.41510235,0.00010845,2]
[361211981,1747344974884,1422.48,9.163e-05,2]
[361211982,1747345002376,-245.41510235,0.00010845,2]
[361211983,1747345038951,-245.41510235,0.000109,2]
[361211984,1747345080421,-245.41510235,0.00010845,2]
[361211985,1747345107374,-64.62968665,0.00010845,2]
[361211986,1747345107401,-180.7854157,0.000109,2]
[361211987,1747345133208,-215.95880197,0.000109,2]
[361211988,1747345171223,-215.95880197,0.000109,2]
[361211989,1747345214877,-172.04,0.0001089,2]
[361211990,1747345243683,-172.04,0.0001089,2]
[361211991,1747345272261,-118.98,0.0001089,2]
[361211992,1747345272285,-53.06,0.0001089,2]